[Event "44th Chess Olympiad Open 2022"]
[Site "Chennai"]
[Date "2022.08.03"]
[Round "6.1"]
[White "Gukesh D"]
[Black "Sargissian, Gabriel"]
[Result "1-0"]
[WhiteElo "2684"]
[BlackElo "2698"]
[Annotator "TA"]
[PlyCount "81"]
[EventDate "2022.??.??"]
[TimeControl "60"]

{[%evp 12,81,8,0,2,12,14,0,27,0,0,0,22,0,13,-18,-15,-36,0,0,0,0,0,0,50,81,35,0,
80,85,18,35,37,42,140,39,162,160,363,363,545,524,491,483,483,483,474,226,468,
460,477,479,479,479,479,475,462,458,518,501,567,562,559,559,551,544,529,502,
5206,5200,5165,4727]} 1. d4 {[%emt 0:01:10]} d5 {[%emt 0:00:17]} 2. c4 {
[%emt 0:01:08]} e6 {[%emt 0:02:16]} 3. Nf3 {[%emt 0:01:00]} Nf6 {[%emt 0:00:45]
} 4. Nc3 {[%emt 0:00:41]} Bb4 {[%emt 0:00:16]} 5. Qa4+ {[%emt 0:01:21]} Nc6 {
[%emt 0:00:30][%cal Yb8c6,Yc6e5,Ye5f3]} 6. e3 {[%emt 0:00:40]} O-O {[%emt 0:01:
02]} 7. Bd2 {[%emt 0:01:38]} dxc4 {[%emt 0:05:32] D38: Queen's Gambit Declined:
Ragozin Defence (4 Nf3 Bb4).} 8. Bxc4 {[%emt 0:00:07]} Bd6 {[%emt 0:00:26]} 9.
Qc2 {[%emt 0:00:29]} e5 {[%emt 0:01:00] The position is equal.} 10. dxe5 {
[%emt 0:00:05]} Nxe5 {[%emt 0:00:07]} 11. Be2 $5 {[%emt 0:00:00] Exploring
less charted territory.} Nxf3+ {[%emt 0:20:40]} 12. gxf3 {[%emt 0:00:14]} a6 {
[%emt 0:00:33]} 13. O-O-O {[%emt 0:04:23]} b5 $1 {[%emt 0:00:00][%cal Yb7b5,
Yb5b4]} 14. Rhg1 {[%emt 0:00:11] [#]} b4 $146 {[%emt 0:09:12]} (14... Bxh2 15.
Rh1 Bd6 16. Ne4 $16) ({Predecessor:} 14... Qe7 15. Ne4 Nxe4 16. fxe4 Be6 17. f4
f6 18. Rg3 Bb4 19. Bxb4 Qxb4 20. Rdg1 g6 {1-0 (33) Zhao,J (2625)-Xu,Y (2516)
Liaocheng 2021}) 15. Ne4 {[%emt 0:11:51]} Nxe4 $1 {[%emt 0:08:30]} 16. fxe4 {
[%emt 0:00:51][%cal Ye4e5]} Qe7 {[%emt 0:00:00]} 17. f4 {[%emt 0:01:41]} a5 {
[%emt 0:02:10]} (17... f6 $11) 18. e5 $14 {[%emt 0:02:30] Bf3 is the strong
threat.} Bc5 {[%emt 0:02:30]} 19. Rg5 {[%emt 0:29:02] And now Rdg1 would win.}
Ba6 {[%emt 0:03:00] [#]} (19... g6 $1 $11 {remains equal.}) 20. Rdg1 $1 $36 {
[%emt 0:10:27] White is really pushing. White is more active.} g6 {[%emt 0:00:
09]} 21. Bxa6 {[%emt 0:00:00]} Rxa6 {[%emt 0:00:06]} 22. f5 {[%emt 0:00:03]
Threatens to win with Qc4.} Ba7 {[%emt 0:14:15]} ({Black should try} 22... Rc6
$1 $14 23. Kb1 Qe8) 23. e6 {[%emt 0:05:59]} (23. Kb1 $16 {aiming for Qc4.} Rd8
24. e6) 23... Kh8 {[%emt 0:00:00] [#] This move loses the game for Black.} (
23... fxe6 $14 24. fxg6 h6) 24. Kb1 $1 $18 {[%emt 0:00:05]} (24. fxg6 fxg6 25.
Qc4 Rxe6 26. Rxa5 Bxe3 27. Bxe3 Rxe3 $17) 24... gxf5 $2 {[%emt 0:04:15] [#]} (
24... h6 $16 25. Rxg6 fxg6 26. Rxg6 Rf6) 25. Bxb4 $1 {[%emt 0:03:54]} ({
Worse is} 25. Rxf5 Rxe6 26. Rxa5 (26. Rh5 f6 $15) 26... c5 $11) (25. Qxf5 Rxe6
26. Rg7 (26. Qxa5 c5 $11) 26... Rg6 27. R1xg6 hxg6 28. Qxg6 fxg6 $11) 25...
Qxb4 {[%emt 0:00:49]} (25... axb4 $142 26. Qg2 Qd8) 26. Qg2 {[%emt 0:01:04]
White wants to mate with Rg8+.} (26. exf7 $2 Rg6 27. Qxf5 Qd6 28. Rxg6 hxg6 29.
Qxg6 Qxg6+ 30. Rxg6 Rxf7 $19) 26... Qe4+ {[%emt 0:03:21]} 27. Qxe4 {[%emt 0:00:
09]} fxe4 {[%emt 0:00:02]} 28. e7 {[%emt 0:00:07][%cal Re7f8]} Re8 {[%emt 0:00:
07] [#]} 29. Rg8+ {[%emt 0:00:04] Decoy, Promotion} Rxg8 {[%emt 0:00:04]} 30.
Rxg8+ {[%emt 0:00:04] Remove Defender. White is clearly winning.} Kxg8 {
[%emt 0:00:08]} 31. e8=Q+ {[%emt 0:00:05] Endgame KQ-KRB} Kg7 {[%emt 0:00:06]}
32. Qe5+ {[%emt 0:01:10]} Rf6 {[%emt 0:01:00]} 33. Qg5+ {[%emt 0:02:02]} Rg6 {
[%emt 0:00:00]} 34. Qxa5 {[%emt 0:00:07]} ({Not} 34. Qe5+ Kg8 35. Qxc7 (35.
Qxe4 Bb6 $16) 35... Bb6 36. Qb8+ Kg7 37. Qe5+ Kh6 38. Qxe4 Kg7 39. Qe5+ Kg8 $18
) 34... Rg1+ {[%emt 0:01:11]} 35. Kc2 {[%emt 0:00:03]} Rg2+ {[%emt 0:00:15]}
36. Kb3 {[%emt 0:00:07]} Bb6 {[%emt 0:00:30]} 37. Qe5+ {[%emt 0:00:05]} Kf8 {
[%emt 0:00:00]} 38. Qh8+ {[%emt 0:00:37]} Ke7 {[%emt 0:00:15]} 39. Qxh7 {
[%emt 0:00:03]} Re2 {[%emt 0:01:40]} (39... Rg6 $142 40. Qh4+ Ke8) 40. Qxe4+ {
[%emt 0:00:07]} Kf8 {[%emt 0:00:06]} 41. Qb4+ {[%emt 0:30:03] Weighted Error
Value: White=0.08 (flawless) /Black=0.41} 1-0

[Event "44th Chess Olympiad Open 2022"]
[Site "Chennai"]
[Date "2022.08.03"]
[Round "6.1"]
[White "Melkumyan, Hrant"]
[Black "Sarin Nihal"]
[Result "1/2-1/2"]
[WhiteElo "2634"]
[BlackElo "2651"]
[Annotator "TA"]
[PlyCount "60"]
[EventDate "2022.??.??"]
[TimeControl "60"]

{[%evp 13,60,25,44,31,35,23,22,29,24,24,35,11,3,0,0,0,0,0,0,0,0,0,0,0,0,0,10,9,
27,19,18,0,0,-8,0,0,0,0,0,0,0,0,0,0,0,0,0,0,0]} 1. c4 {[%emt 0:00:04]} e6 {
[%emt 0:00:24][%cal Ye7e6,Ye6d5]} 2. Nc3 {[%emt 0:00:16]} d5 {[%emt 0:00:00]}
3. d4 {[%emt 0:00:24]} c5 {[%emt 0:00:06]} 4. cxd5 {[%emt 0:00:46]} exd5 {
[%emt 0:00:11]} 5. Nf3 {[%emt 0:00:52]} Nf6 {[%emt 0:00:08]} 6. Bg5 {[%emt 0:
01:13]} Be6 {[%emt 0:00:09]} 7. Bxf6 {[%emt 0:00:56]} Qxf6 {[%emt 0:00:00]} 8.
e4 {[%emt 0:00:13] D32: Tarrasch Defence: Sidelines and lines without g3.} dxe4
{[%emt 0:00:36]} 9. Nxe4 {[%emt 0:00:06]} Qf4 {[%emt 0:00:05]} 10. Bb5+ {
[%emt 0:00:25]} Nc6 {[%emt 0:00:24]} 11. Qe2 {[%emt 0:00:33] [#] Threatens to
win with d5.} Be7 {[%emt 0:00:12]} 12. dxc5 {[%emt 0:12:52]} O-O {[%emt 0:18:
09][%cal Ye7c5]} 13. Bxc6 {[%emt 0:01:51]} bxc6 {[%emt 0:00:14]} 14. O-O {
[%emt 0:00:22]} Bd5 {[%emt 0:04:36] This bishop pair is nice.} 15. Rfe1 {
[%emt 0:06:36] [#]} f5 $146 {[%emt 0:15:08]} ({Predecessor:} 15... Rfe8 16. Qd2
Qxd2 17. Nfxd2 f5 18. Nd6 Bxd6 19. cxd6 Red8 20. Nb1 Rxd6 21. Nc3 Be6 {1-0 (52)
Gukesh,D (2614)-Tari,A (2653) Warsaw 2021}) 16. Nc3 {[%emt 0:03:42]} Bxf3 {
[%emt 0:00:22]} ({Don't play} 16... Bxc5 17. Nxd5 cxd5 18. Qe6+ Kh8 19. Qxd5
$16) 17. Qxf3 {[%emt 0:00:15]} ({Don't blunder} 17. Qxe7 $2 Qg4 18. Qg5 Qxg5
$19) 17... Qxf3 {[%emt 0:00:05]} 18. gxf3 {[%emt 0:00:09]} Bxc5 {[%emt 0:00:03]
} 19. Re6 {[%emt 0:00:24]} Bd4 {[%emt 0:25:39]} 20. Rxc6 {[%emt 0:09:08]} Rfc8
{[%emt 0:01:04]} 21. Rxc8+ {[%emt 0:23:13]} Rxc8 $11 {[%emt 0:00:35] Endgame
KRB-KRN. The position is equal.} 22. Rc1 {[%emt 0:00:08]} a5 {[%emt 0:00:00]}
23. Kf1 {[%emt 0:03:47]} a4 {[%emt 0:00:25][%cal Ya4a3] [#] aiming for ...a3!}
24. a3 {[%emt 0:00:43]} Kf7 {[%emt 0:00:44]} 25. Ke2 {[%emt 0:06:58]} Bxc3 {
[%emt 0:01:01]} 26. Rxc3 {[%emt 0:03:26]} Rb8 {[%emt 0:00:11]} 27. Rc4 {
[%emt 0:00:08]} Rxb2+ {[%emt 0:00:04]} 28. Kf1 {[%emt 0:00:04]} Rb3 {[%emt 0:
00:00][%csl Ya3,Yf3]} 29. Rxa4 {[%emt 0:00:04]} Rxf3 {[%emt 0:00:04]} 30. Ra7+
{[%emt 0:00:07]} Kf6 {[%emt 0:00:05] Weighted Error Value: White=0.03 
(flawless) /Black=0.02 (flawless)} 1/2-1/2

[Event "44th Chess Olympiad Open 2022"]
[Site "Chennai"]
[Date "2022.08.03"]
[Round "6.1"]
[White "Adhiban, B..."]
[Black "Ter-Sahakyan, Samvel"]
[Result "0-1"]
[WhiteElo "2598"]
[BlackElo "2625"]
[Annotator "TA"]
[PlyCount "80"]
[EventDate "2022.??.??"]
[TimeControl "60"]

{[%evp 13,80,-10,-4,-14,2,0,0,0,0,0,0,0,9,20,14,-48,-51,-10,-36,-56,-20,-50,
-18,-20,-10,-20,0,-32,-31,-48,-41,-50,-32,-55,-18,-16,-6,-101,-112,-101,-116,
-127,-58,-69,-56,-63,-60,-63,-58,-85,-87,-248,-266,-272,-260,-242,-244,-266,
-264,-291,-279,-297,-290,-325,-282,-996,-933,-728,-686]} 1. d4 {[%emt 0:00:06]}
Nf6 {[%emt 0:00:07]} 2. c4 {[%emt 0:00:04]} e6 {[%emt 0:00:04]} 3. Nc3 {
[%emt 0:00:06]} Bb4 {[%emt 0:00:05]} 4. e3 {[%emt 0:00:06]} O-O {[%emt 0:00:09]
} 5. Bd3 {[%emt 0:00:08]} d5 {[%emt 0:00:10]} 6. cxd5 {[%emt 0:00:05]} exd5 {
[%emt 0:00:06]} 7. Nge2 {[%emt 0:00:08]} Re8 {[%emt 0:03:48]} 8. Bd2 {[%emt 0:
00:00] E48: Nimzo-Indian: Rubinstein: 5 Bd3 d5 including 6 Ne2, but excluding
6 a3.} Bf8 {[%emt 0:04:09]} 9. Rc1 {[%emt 0:05:39]} b6 {[%emt 0:06:45]} 10. O-O
{[%emt 0:10:53] The position is equal.} c5 {[%emt 0:06:08]} 11. Nf4 {[%emt 0:
00:00]} Bb7 {[%emt 0:06:18]} 12. Qf3 $1 {[%emt 0:11:32]} a6 {[%emt 0:18:58] [#]
} 13. dxc5 $146 {[%emt 0:13:38]} ({Predecessor:} 13. Rfd1 Ra7 14. Bb1 Bc6 15.
Nce2 Rd7 16. Ng3 g6 17. Nd3 Bb7 18. Ne5 Rd6 19. Bc3 {½-½ (30) Swayams,M 
(2432)-Grigoriants,S (2568) Caleta 2018}) 13... bxc5 {[%emt 0:02:22]} 14. Rfd1
{[%emt 0:11:59]} (14. Bc4 $11) 14... Nbd7 $1 $15 {[%emt 0:06:10][%cal Yb8d7,
Yd7e5,Ye5g6]} 15. Qh3 {[%emt 0:01:06][%cal Yc3d5] Strongly threatening Ncxd5!}
({Much worse is} 15. Nfxd5 Nxd5 16. Bxh7+ (16. Nxd5 $2 Ne5 $17) 16... Kxh7 $17)
15... Ne5 {[%emt 0:07:27]} 16. Bb1 {[%emt 0:00:04][%cal Yc3d5]} Ng6 {[%emt 0:
02:12]} 17. Nce2 {[%emt 0:09:20]} Qb6 {[%emt 0:02:28]} 18. Bc3 {[%emt 0:04:18]}
Rad8 {[%emt 0:05:43]} 19. Qf5 $1 {[%emt 0:02:05]} Bc8 {[%emt 0:03:26]} 20. Qc2
{[%emt 0:00:38]} (20. Qd3 $5 {[%cal Rd3d2]}) 20... d4 $36 {[%emt 0:03:49]
Black is pushing.} 21. exd4 {[%emt 0:01:09]} Nxf4 {[%emt 0:02:38]} 22. Nxf4 {
[%emt 0:00:31] dxc5 is the strong threat.} cxd4 {[%emt 0:00:09]} 23. Bd2 {
[%emt 0:00:21]} Bg4 {[%emt 0:06:29]} 24. Re1 {[%emt 0:00:48]} Rc8 {[%emt 0:00:
04]} 25. Qd3 {[%emt 0:06:16]} (25. Qb3 $11 {remains equal.} Rxe1+ 26. Rxe1 Qxb3
27. axb3) 25... Rxc1 $17 {[%emt 0:01:26]} (25... Qxb2 $2 26. Nd5 $1 Ne4 27.
Rxc8 Bxc8 28. Rxe4 $18) 26. Rxc1 {[%emt 0:00:05][%cal Yf4d5] aiming for Nd5!}
Qxb2 {[%emt 0:00:23]} 27. Qc2 {[%emt 0:11:17] Against Bf5} Ba3 {[%emt 0:05:29]
Black is much more active.} (27... Qa3 $1 $17 {Hoping for ...Rc8.} 28. f3 Bd7)
28. Qxb2 $15 {[%emt 0:01:08]} Bxb2 {[%emt 0:00:04]} 29. Re1 {[%emt 0:00:24]}
Rxe1+ {[%emt 0:04:27]} 30. Bxe1 {[%emt 0:00:01]} Bd7 {[%emt 0:00:23]} 31. Bd3 {
[%emt 0:02:18]} g5 {[%emt 0:00:00]} 32. Nh3 {[%emt 0:00:46] [#] Now White is
beyond hope.} (32. Ne2 $17) 32... Bc3 $1 $19 {[%emt 0:00:26]} 33. Kf1 {[%emt 0:
00:53]} ({Much weaker is} 33. Bxc3 dxc3 34. Bc2 (34. Nxg5 $2 Ba4 $19) 34... Nd5
35. Nxg5 Nb4 36. Bxh7+ Kg7 $19) 33... Bxe1 {[%emt 0:01:17]} 34. Kxe1 {[%emt 0:
00:02]} Bxh3 {[%emt 0:00:11]} 35. gxh3 {[%emt 0:00:01] Endgame [#] KB-KN} a5 {
[%emt 0:00:05]} 36. Ke2 {[%emt 0:04:50]} Nd7 {[%emt 0:00:12]} 37. Kf3 {[%emt 0:
00:39]} Nc5 {[%emt 0:00:00]} 38. Bc2 {[%emt 0:00:14]} Kg7 {[%emt 0:00:22]} 39.
Kg4 $2 {[%emt 0:00:35]} (39. h4 gxh4 40. Kf4) 39... d3 {[%emt 0:01:24]} 40. Bd1
{[%emt 0:01:10]} Ne4 {[%emt 0:00:13] Weighted Error Value: White=0.41/Black=0.
06 (flawless)} 0-1

[Event "44th Chess Olympiad Open 2022"]
[Site "Chennai"]
[Date "2022.08.03"]
[Round "6.1"]
[White "Hovhannisyan, Robert"]
[Black "Sadhwani, Raunak"]
[Result "1-0"]
[WhiteElo "2591"]
[BlackElo "2611"]
[Annotator "TA"]
[PlyCount "102"]
[EventDate "2022.??.??"]
[TimeControl "60"]

{[%evp 20,102,0,-22,17,7,13,20,13,9,2,4,14,3,2,8,14,10,10,11,16,16,31,0,0,0,0,
0,0,0,8,0,36,-8,18,18,36,36,35,32,22,0,20,22,27,14,24,29,50,50,219,217,208,201,
203,199,184,180,626,605,570,573,522,281,414,406,1046,1039,1039,1038,1022,950,
696,611,697,681,1058,995,960,954,941,867,1039,949,875]} 1. e4 {[%emt 0:00:05]}
e5 {[%emt 0:00:04]} 2. Nf3 {[%emt 0:00:08]} Nc6 {[%emt 0:00:04]} 3. Bb5 {
[%emt 0:00:11]} Nf6 {[%emt 0:00:06]} 4. O-O {[%emt 0:00:36]} Nxe4 {[%emt 0:00:
00]} 5. d4 {[%emt 0:00:25]} Nd6 {[%emt 0:00:03]} 6. Bxc6 {[%emt 0:00:05]} dxc6
{[%emt 0:00:02][%cal Yd7c6,Yc6c5]} 7. dxe5 {[%emt 0:00:09]} Nf5 {[%emt 0:00:03]
} 8. Qxd8+ {[%emt 0:00:08]} Kxd8 {[%emt 0:00:03]} 9. Nc3 {[%emt 0:00:26]} Bd7 {
[%emt 0:00:39]} 10. h3 {[%emt 0:00:32]} h6 {[%emt 0:01:13]} 11. b3 {[%emt 0:00:
27]} c5 {[%emt 0:00:20] C67: Ruy Lopez: Berlin Defence: 4 0-0 Nxe4.} (11... Bb4
12. Bb2 $14) 12. Bb2 $5 {[%emt 0:01:30] Exploring less charted territory.} Nd4
{[%emt 0:00:24]} 13. Nxd4 {[%emt 0:00:00]} cxd4 {[%emt 0:00:08] The position
is equal.} 14. Ne4 {[%emt 0:00:26]} c5 {[%emt 0:00:07]} 15. c3 {[%emt 0:01:03]}
dxc3 {[%emt 0:00:25] [#]} 16. Bxc3 $146 {[%emt 0:00:06]} ({Predecessor:} 16.
Nxc3 Kc7 17. Rad1 Bc6 18. Nd5+ Bxd5 19. Rxd5 Be7 20. f4 Rhd8 21. Rdd1 a5 22. g4
{½-½ (41) Romero Rodriguez,J (2276) -Milde,L (2298) ICCF email 2015}) 16...
a5 {[%emt 0:03:59][%cal Ya7a5,Ya5a4]} 17. Rad1 {[%emt 0:03:58][%cal Ye5e6]} Kc7
{[%emt 0:00:11]} 18. f4 {[%emt 0:00:42]} a4 {[%emt 0:01:43]} 19. Nd6 {[%emt 0:
01:22]} Bxd6 {[%emt 0:00:00]} 20. exd6+ {[%emt 0:00:10] [#] Discovered Attack}
Kb6 {[%emt 0:00:00]} 21. b4 {[%emt 0:02:11]} cxb4 {[%emt 0:00:07]} 22. Bxb4 {
[%emt 0:00:05]} Rhe8 {[%emt 0:00:10]} 23. Rf2 {[%emt 0:12:48]} Rac8 {[%emt 0:
08:29] Against Bc3} 24. Rd4 {[%emt 0:09:45]} Ka6 {[%emt 0:09:58]} 25. a3 {
[%emt 0:08:15]} b5 {[%emt 0:00:30]} 26. Rd5 {[%emt 0:17:31]} (26. f5 $5 {
[%cal Rd4g4]}) 26... f6 {[%emt 0:03:16]} 27. Rd3 {[%emt 0:01:28]} Bf5 {[%emt 0:
08:19]} 28. Rg3 {[%emt 0:00:00]} g6 {[%emt 0:01:00]} 29. Rd2 {[%emt 0:04:51]}
Re4 {[%emt 0:48:30]} 30. Kh2 {[%emt 0:00:52]} Rd8 {[%emt 0:04:21]} 31. Rc3 {
[%emt 0:03:36] Hoping for Rc6+.} Rc4 {[%emt 0:00:11] Against Rc6+} 32. Re3 {
[%emt 0:03:25]} Rxf4 {[%emt 0:05:08]} 33. Re7 {[%emt 0:00:39] Strongly
threatening d7.} Re4 {[%emt 0:00:00]} 34. Rf7 {[%emt 0:05:16]} Re6 $2 {[%emt 0:
00:28] [#] Black cannot hold the game after this.} (34... Rd7 $14 35. Rxf6 h5)
35. Bc5 $1 $18 {[%emt 0:00:00][%csl Gc5][%cal Rf7a7]} b4 {[%emt 0:00:08]} 36.
Ra7+ {[%emt 0:00:56]} (36. axb4 $6 Kb5 37. Ra7 Ree8 38. Ra5+ Kc6 $16) 36... Kb5
{[%emt 0:00:04]} 37. Bxb4 {[%emt 0:00:29] Threatens to win with Rb2.} ({
Don't do} 37. axb4 $6 Ree8 38. Ra5+ Kc6 $16) 37... Re5 {[%emt 0:01:11]} 38. Rb2
{[%emt 0:05:00] aiming for Ba5+.} Kc6 $2 {[%emt 0:00:43]} (38... Kb6 39. Rc7 (
39. Rxa4 Kc6 $16) 39... Ka6) 39. Rc7+ {[%emt 0:00:52]} Kd5 {[%emt 0:00:24]} 40.
Rd2+ {[%emt 0:00:29]} Ke4 {[%emt 0:00:01]} 41. Rc4+ {[%emt 0:36:11]} Ke3 {
[%emt 0:30:09]} 42. Rc1 {[%emt 0:02:29]} Bd3 {[%emt 0:00:00]} (42... Kf4 $142
43. Bc3 Kg5 44. Bxe5 fxe5) 43. Bc3 {[%emt 0:00:00] Threatening mate with Re1+.
White is clearly winning.} Be2 {[%emt 0:00:00]} 44. Re1 {[%emt 0:00:00]} Kf2 {
[%emt 0:00:00]} 45. Rb1 {[%emt 0:00:00] White threatens Bd4+ and mate.} Ke3 {
[%emt 0:00:00]} 46. Rbb2 {[%emt 0:00:00]} Bd3 {[%emt 0:00:00]} 47. Rd1 {
[%emt 0:00:00] Re1+ is the strong threat.} ({Less strong is} 47. Bxe5 fxe5 48.
Rd1 e4 49. Re1+ Kd4 $16) 47... Bc4 {[%emt 0:00:00]} 48. Bd4+ {[%emt 0:00:00]}
Ke4 {[%emt 0:00:00]} 49. Bxe5 {[%emt 0:00:00]} Kxe5 {[%emt 0:00:00]} 50. Re1+ {
[%emt 0:00:00]} Kd4 {[%emt 0:00:00]} 51. Rb4 {[%emt 0:00:00]} Kd5 {[%emt 0:00:
00] Weighted Error Value: White=0.11 (very precise) /Black=0.41} 1-0

[Event "44th Chess Olympiad Open 2022"]
[Site "Chennai"]
[Date "2022.08.03"]
[Round "6.2"]
[White "Vidit, Santosh Gujrathi"]
[Black "Yakubboev, Nodirbek"]
[Result "1/2-1/2"]
[WhiteElo "2714"]
[BlackElo "2620"]
[Annotator "TA"]
[PlyCount "120"]
[EventDate "2022.??.??"]
[TimeControl "60"]

{[%evp 15,120,19,30,18,27,27,24,18,35,30,38,24,29,0,0,0,0,0,25,-7,-7,-23,0,-12,
37,0,0,0,0,0,0,0,0,0,0,0,0,0,0,0,-4,-11,-7,-12,-14,-11,-8,-14,-7,-4,-4,-6,-11,
-25,-8,-20,-6,-16,-19,-17,-19,-12,-16,-29,-19,-32,0,0,0,0,0,0,0,0,0,0,0,0,0,0,
0,0,0,0,0,0,0,0,0,0,0,0,0,0,0,0,0,0,0,0,0,0,0,0,0,0,0]} 1. d4 {[%emt 0:00:47]}
Nf6 {[%emt 0:00:05]} 2. c4 {[%emt 0:00:09]} g6 {[%emt 0:00:02]} 3. Nc3 {
[%emt 0:00:15]} Bg7 {[%emt 0:00:01]} 4. e4 {[%emt 0:00:11]} d6 {[%emt 0:00:03]}
5. Nf3 {[%emt 0:00:30]} O-O {[%emt 0:00:06]} 6. Be2 {[%emt 0:00:16]} Na6 {
[%emt 0:00:04]} 7. O-O {[%emt 0:00:33]} e5 {[%emt 0:00:01]} 8. Re1 {[%emt 0:00:
00]} Bg4 {[%emt 0:00:01]} 9. Be3 {[%emt 0:07:17] E94: King's Indian: Classical:
6 Be2 e5 7 0-0: Various Black 7th moves.} exd4 {[%emt 0:00:05]} 10. Nxd4 {
[%emt 0:01:09]} ({Much weaker is} 10. Qxd4 Nc5 11. Bg5 (11. e5 Bxf3 12. Bxf3
Nfd7 $15) 11... Re8 $15) 10... Bxe2 {[%emt 0:00:04]} 11. Qxe2 {[%emt 0:00:25]
White has an edge.} Re8 {[%emt 0:00:01]} 12. f3 $1 {[%emt 0:00:47]} c6 {
[%emt 0:00:01]} 13. Rad1 {[%emt 0:02:29]} Nd7 {[%emt 0:00:01]} 14. Nc2 {
[%emt 0:12:54] [#]} Bxc3 $146 {[%emt 0:00:02]} ({Predecessor:} 14... Qc7 15.
Bd4 Rad8 16. Bxg7 Kxg7 17. Qf2 Qb6 18. Qxb6 Nxb6 19. b3 Nc5 20. Ne3 a5 {
1-0 (40) Nikolov,M (2551)-Theodorou,N (2513) Paleochora 2018}) 15. bxc3 {
[%emt 0:00:10]} Qe7 {[%emt 0:00:01]} 16. Rd4 {[%emt 0:14:04]} Ne5 {[%emt 0:00:
00]} 17. Red1 {[%emt 0:01:32]} (17. f4 $5 {[%cal Rf4e5]} Nd7 18. Bf2 $11) 17...
Rad8 {[%emt 0:05:53]} 18. Bc1 {[%emt 0:03:05]} Nc7 {[%emt 0:17:38]} 19. R4d2 {
[%emt 0:01:41]} Ne6 {[%emt 0:09:40]} (19... b5 $11 {is more appropriate.} 20.
Nd4 d5) 20. Ne3 {[%emt 0:15:57]} (20. Ba3 $5 {[%cal Ra3d6]}) 20... f6 {[%emt 0:
00:00]} 21. Ba3 {[%emt 0:01:54][%cal Ra3d6]} Nf7 {[%emt 0:03:00][%cal Yf6f5]}
22. Qf2 {[%emt 0:00:54]} Ng7 {[%emt 0:03:52]} 23. Rd3 {[%emt 0:09:47]} Qe6 {
[%emt 0:08:46]} 24. c5 {[%emt 0:13:13]} dxc5 {[%emt 0:00:06]} 25. Rxd8 {
[%emt 0:00:17]} (25. Bxc5 {looks sharper.} Rxd3 26. Rxd3 b6 27. Ba3) 25... Rxd8
{[%emt 0:00:19]} 26. Rxd8+ {[%emt 0:00:13]} Nxd8 {[%emt 0:00:02]} 27. Bxc5 {
[%emt 0:00:20]} b6 {[%emt 0:00:05]} 28. Ba3 {[%emt 0:00:12]} Nf7 {[%emt 0:00:
00][%cal Yd8f7,Yf7e5,Ye5d7]} 29. c4 {[%emt 0:01:16]} Ne5 {[%emt 0:00:00]} 30.
Qd2 {[%emt 0:01:19]} Qd7 {[%emt 0:00:46]} 31. Qd6 {[%emt 0:04:50]} Qxd6 {
[%emt 0:01:38]} (31... h5 {keeps more tension.} 32. Kf1 Ne6 33. Ke2 Kf7) 32.
Bxd6 $11 {[%emt 0:00:02] Endgame KBN-KNN} Kf7 {[%emt 0:00:35]} 33. Kf1 {
[%emt 0:00:42]} Ke6 {[%emt 0:01:28]} 34. Bb8 {[%emt 0:01:11]} Nd7 {[%emt 0:02:
06]} 35. Bf4 {[%emt 0:01:09]} Ne5 {[%emt 0:01:41]} 36. Ke2 {[%emt 0:00:00]} Nh5
{[%emt 0:02:47]} 37. g3 {[%emt 0:00:14]} Nxf4+ {[%emt 0:01:17]} 38. gxf4 {
[%emt 0:00:02] KN-KN} Nd7 {[%emt 0:00:25]} 39. h4 {[%emt 0:01:53]} Kd6 {
[%emt 0:01:43]} 40. Kd2 {[%emt 0:00:52]} a5 {[%emt 0:00:51]} 41. Kc3 {[%emt 0:
00:00] The position is equal.} Nc5 {[%emt 0:03:48]} 42. Ng4 {[%emt 0:01:37]} f5
{[%emt 0:04:36]} 43. exf5 {[%emt 0:06:08]} gxf5 {[%emt 0:00:02]} 44. Ne3 {
[%emt 0:00:09]} Ke6 {[%emt 0:02:51]} 45. Nc2 $1 {[%emt 0:00:08]} Kd7 {[%emt 0:
00:00]} 46. Nd4 {[%emt 0:01:25]} Ne6 {[%emt 0:00:08] [#] Threatens to win with
...Nxd4.} 47. Nxf5 {[%emt 0:00:48]} Nxf4 {[%emt 0:00:02]} 48. a3 {[%emt 0:00:
00]} Ke6 {[%emt 0:02:50]} 49. Nd4+ {[%emt 0:00:14]} Kd6 {[%emt 0:00:03]} 50.
Nf5+ $1 {[%emt 0:01:38]} Kc5 {[%emt 0:01:34]} 51. Ng3 {[%emt 0:00:51][%cal
Rg3e4] [#]} Kd6 {[%emt 0:05:33]} 52. Kd4 {[%emt 0:09:06]} Ne6+ {[%emt 0:00:02]}
53. Ke4 {[%emt 0:01:57]} Kc5 {[%emt 0:03:15]} 54. Kd3 {[%emt 0:00:29][%cal
Rg3e4]} b5 {[%emt 0:00:07]} 55. Ne4+ {[%emt 0:00:53]} Kb6 {[%emt 0:00:01]} 56.
cxb5 {[%emt 0:00:42]} cxb5 {[%emt 0:00:10]} 57. Nf6 {[%emt 0:00:58]} h6 {
[%emt 0:00:27]} 58. h5 {[%emt 0:00:43]} Kc5 {[%emt 0:04:35]} 59. Ng4 {[%emt 0:
00:00]} Nf4+ {[%emt 0:01:13]} 60. Kc3 {[%emt 0:00:14]} Nxh5 {[%emt 0:00:33]
Weighted Error Value: White=0.04 (flawless) /Black=0.04 (flawless)} 1/2-1/2